[Event "*** Titled Tuesday Blitz"]
[Site "Chess.com"]
[Date "2020.12.01"]
[Round "7"]
[White "Buffy7"]
[Black "Man-Chuk"]
[Result "0-1"]
[WhiteElo "2690"]
[BlackElo "2873"]
[TimeControl "180+1"]
[EndTime "11:16:53 PST"]
[Termination "Man-Chuk won by resignation"]

1. e4 {[%clk 0:03:00.9]} 1... c6 {[%clk 0:02:58.9]} 2. d4 {[%clk 0:02:59.8]}
2... d5 {[%clk 0:02:59.3]} 3. e5 {[%clk 0:03:00.3]} 3... Bf5 {[%clk 0:02:59.1]}
4. Nf3 {[%clk 0:02:59.8]} 4... e6 {[%clk 0:02:59.5]} 5. Be2 {[%clk 0:03:00.1]}
5... c5 {[%clk 0:02:59.9]} 6. O-O {[%clk 0:02:52.7]} 6... Nc6 {[%clk 0:02:57.6]}
7. c3 {[%clk 0:02:51.9]} 7... Rc8 {[%clk 0:02:54.2]} 8. a3 {[%clk 0:02:45.4]}
8... cxd4 {[%clk 0:02:41.6]} 9. Nxd4 {[%clk 0:02:42.5]} 9... Bg6 {[%clk
0:02:38.2]} 10. Nxc6 {[%clk 0:02:24.4]} 10... bxc6 {[%clk 0:02:38.1]} 11. c4
{[%clk 0:02:24.9]} 11... d4 {[%clk 0:02:10.5]} 12. Bd3 {[%clk 0:02:12.4]} 12...
c5 {[%clk 0:02:02.9]} 13. Re1 {[%clk 0:02:10.8]} 13... Ne7 {[%clk 0:02:00]} 14.
b4 {[%clk 0:01:47]} 14... Qd7 {[%clk 0:01:37.5]} 15. b5 {[%clk 0:01:40.1]} 15...
Nf5 {[%clk 0:01:35.8]} 16. Qc2 {[%clk 0:01:31.8]} 16... Be7 {[%clk 0:01:33.2]}
17. Nd2 {[%clk 0:01:31.5]} 17... O-O {[%clk 0:01:23.3]} 18. Ne4 {[%clk
0:01:28.7]} 18... Qc7 {[%clk 0:01:02]} 19. Bf4 {[%clk 0:01:26.7]} 19... Rfd8
{[%clk 0:00:59.5]} 20. a4 {[%clk 0:01:24.5]} 20... a5 {[%clk 0:00:55.2]} 21.
Rad1 {[%clk 0:01:08.6]} 21... Qb7 {[%clk 0:00:54.5]} 22. Qd2 {[%clk 0:00:55]}
22... Rd7 {[%clk 0:00:50.6]} 23. Qxa5 {[%clk 0:00:50.7]} 23... Ra8 {[%clk
0:00:48.7]} 24. Qd2 {[%clk 0:00:51.2]} 24... Rxa4 {[%clk 0:00:47.7]} 25. Ra1
{[%clk 0:00:50.1]} 25... Qa8 {[%clk 0:00:46.3]} 26. Qb2 {[%clk 0:00:39.3]} 26...
Rda7 {[%clk 0:00:46]} 27. Rxa4 {[%clk 0:00:39.2]} 27... Rxa4 {[%clk 0:00:46.9]}
28. b6 {[%clk 0:00:38.9]} 28... Rb4 {[%clk 0:00:45.4]} 29. Qa1 {[%clk
0:00:32.1]} 29... Qc6 {[%clk 0:00:44.6]} 30. Rb1 {[%clk 0:00:23.4]} 30... Qxb6
{[%clk 0:00:42.6]} 31. Qa8+ {[%clk 0:00:21.5]} 31... Bf8 {[%clk 0:00:43.1]} 32.
Ra1 {[%clk 0:00:12.6]} 32... Rb3 {[%clk 0:00:37.7]} 33. Bf1 {[%clk 0:00:11.6]}
33... h6 {[%clk 0:00:17.2]} 34. Nd6 {[%clk 0:00:11.6]} 34... Qb8 {[%clk
0:00:12.6]} 35. g4 {[%clk 0:00:08.4]} 35... Nh4 {[%clk 0:00:09.9]} 36. Bg3
{[%clk 0:00:06.9]} 36... Nf3+ {[%clk 0:00:09.1]} 37. Kg2 {[%clk 0:00:07.5]}
37... Nd2 {[%clk 0:00:08.1]} 38. Be2 {[%clk 0:00:04.7]} 38... Bxd6 {[%clk
0:00:08.2]} 39. exd6 {[%clk 0:00:04.4]} 39... Be4+ {[%clk 0:00:08.2]} 40. Qxe4
{[%clk 0:00:03.5]} 40... Nxe4 {[%clk 0:00:09.1]} 41. d7 {[%clk 0:00:04.4]} 41...
Qd8 {[%clk 0:00:09]} 42. Bf3 {[%clk 0:00:03.3]} 42... f5 {[%clk 0:00:09.4]} 43.
gxf5 {[%clk 0:00:03.2]} 43... exf5 {[%clk 0:00:10.3]} 44. Be5 {[%clk 0:00:03.7]}
44... Qxd7 {[%clk 0:00:09.6]} 45. Ra8+ {[%clk 0:00:03.5]} 45... Kh7 {[%clk
0:00:09.4]} 46. h4 {[%clk 0:00:02.7]} 46... Rxf3 {[%clk 0:00:08.9]} 47. Kxf3
{[%clk 0:00:02.5]} 47... Nd2+ {[%clk 0:00:09.3]} 48. Ke2 {[%clk 0:00:02.9]}
48... Nxc4 {[%clk 0:00:09.6]} 49. Bf4 {[%clk 0:00:03.5]} 49... Qe6+ {[%clk
0:00:09.9]} 50. Kf1 {[%clk 0:00:04.1]} 50... Qe4 {[%clk 0:00:09.1]} 51. Ra7
{[%clk 0:00:05]} 51... Qxf4 {[%clk 0:00:09.2]} 52. Rxg7+ {[%clk 0:00:05.5]}
52... Kxg7 {[%clk 0:00:09.3]} 0-1

[Event "*** Titled Tuesday Blitz"]
[Site "Chess.com"]
[Date "2020.12.01"]
[Round "7"]
[White "marabu44"]
[Black "DinaBelenkaya"]
[Result "0-1"]
[WhiteElo "2270"]
[BlackElo "2389"]
[TimeControl "180+1"]
[EndTime "11:16:57 PST"]
[Termination "DinaBelenkaya won on time"]

1. Nf3 {[%clk 0:02:58.6]} 1... d5 {[%clk 0:02:56.3]} 2. c4 {[%clk 0:02:57.1]}
2... d4 {[%clk 0:02:56.2]} 3. e3 {[%clk 0:02:57]} 3... c5 {[%clk 0:02:51.2]} 4.
b4 {[%clk 0:02:56.5]} 4... Bg4 {[%clk 0:02:49.8]} 5. bxc5 {[%clk 0:02:47]} 5...
Nc6 {[%clk 0:02:49.4]} 6. h3 {[%clk 0:02:44]} 6... Bxf3 {[%clk 0:02:47.5]} 7.
Qxf3 {[%clk 0:02:43.6]} 7... e5 {[%clk 0:02:48.4]} 8. d3 {[%clk 0:02:26.7]} 8...
Bxc5 {[%clk 0:02:44.9]} 9. e4 {[%clk 0:02:17.1]} 9... Bb4+ {[%clk 0:02:40.4]}
10. Bd2 {[%clk 0:02:16.6]} 10... Qa5 {[%clk 0:02:39.9]} 11. Qd1 {[%clk
0:02:12.9]} 11... Nge7 {[%clk 0:02:35.1]} 12. Be2 {[%clk 0:02:12.4]} 12... O-O
{[%clk 0:02:34]} 13. O-O {[%clk 0:02:12.2]} 13... Ng6 {[%clk 0:02:34.1]} 14. g3
{[%clk 0:02:06.8]} 14... a6 {[%clk 0:02:25.5]} 15. a3 {[%clk 0:02:06.3]} 15...
Bxd2 {[%clk 0:02:24.9]} 16. Qxd2 {[%clk 0:02:05.3]} 16... b5 {[%clk 0:02:23]}
17. Rc1 {[%clk 0:01:58.3]} 17... Rfc8 {[%clk 0:02:20.3]} 18. Bg4 {[%clk
0:01:48.3]} 18... Rc7 {[%clk 0:02:08.5]} 19. Qxa5 {[%clk 0:01:43.3]} 19... Nxa5
{[%clk 0:02:08]} 20. Nd2 {[%clk 0:01:43.9]} 20... bxc4 {[%clk 0:02:07.4]} 21.
dxc4 {[%clk 0:01:44]} 21... Nf8 {[%clk 0:01:58.1]} 22. Rab1 {[%clk 0:01:39.4]}
22... g6 {[%clk 0:01:55.4]} 23. h4 {[%clk 0:01:39]} 23... Rc6 {[%clk 0:01:34.6]}
24. c5 {[%clk 0:01:27.8]} 24... f6 {[%clk 0:01:33.9]} 25. Rb6 {[%clk 0:01:20.5]}
25... Kf7 {[%clk 0:01:31.2]} 26. Nc4 {[%clk 0:01:04]} 26... Rxb6 {[%clk
0:01:10.2]} 27. cxb6 {[%clk 0:00:57.3]} 27... Nxc4 {[%clk 0:00:19.3]} 28. Rxc4
{[%clk 0:00:55.4]} 28... h5 {[%clk 0:00:20.2]} 29. Rc7+ {[%clk 0:00:52.2]} 29...
Ke8 {[%clk 0:00:20]} 30. Rc8+ {[%clk 0:00:40.8]} 30... Rxc8 {[%clk 0:00:19.3]}
31. Bxc8 {[%clk 0:00:41.4]} 31... Kd8 {[%clk 0:00:19.8]} 32. Bxa6 {[%clk
0:00:41.4]} 32... Nd7 {[%clk 0:00:19.1]} 33. b7 {[%clk 0:00:40.6]} 33... Kc7
{[%clk 0:00:19.4]} 34. Bb5 {[%clk 0:00:34.5]} 34... Nc5 {[%clk 0:00:18.1]} 35.
f3 {[%clk 0:00:25.5]} 35... Nxb7 {[%clk 0:00:17.5]} 36. Kf2 {[%clk 0:00:22.5]}
36... Kb6 {[%clk 0:00:17.7]} 37. Bc4 {[%clk 0:00:19.9]} 37... Nd6 {[%clk
0:00:17.2]} 38. Bd5 {[%clk 0:00:18.7]} 38... Ka5 {[%clk 0:00:16.4]} 39. g4
{[%clk 0:00:19]} 39... Ka4 {[%clk 0:00:14]} 40. gxh5 {[%clk 0:00:15.1]} 40...
gxh5 {[%clk 0:00:14.9]} 41. Bc6+ {[%clk 0:00:14.3]} 41... Kxa3 {[%clk
0:00:14.1]} 42. Be8 {[%clk 0:00:15.2]} 42... Kb2 {[%clk 0:00:14.5]} 43. Bxh5
{[%clk 0:00:14.7]} 43... d3 {[%clk 0:00:14.9]} 44. Ke3 {[%clk 0:00:13.9]} 44...
Kc3 {[%clk 0:00:14.7]} 45. f4 {[%clk 0:00:12.1]} 45... exf4+ {[%clk 0:00:14.6]}
46. Kxf4 {[%clk 0:00:12.3]} 46... d2 {[%clk 0:00:12.5]} 47. e5 {[%clk
0:00:11.6]} 47... fxe5+ {[%clk 0:00:12.3]} 48. Kxe5 {[%clk 0:00:12]} 48... Nc4+
{[%clk 0:00:12.7]} 49. Ke4 {[%clk 0:00:10.8]} 49... Nd6+ {[%clk 0:00:12.5]} 50.
Ke5 {[%clk 0:00:10.9]} 50... Nc4+ {[%clk 0:00:12.6]} 51. Kf4 {[%clk 0:00:09.5]}
51... Kd4 {[%clk 0:00:10.2]} 52. Bg4 {[%clk 0:00:09.2]} 52... Ne3 {[%clk
0:00:10]} 53. Be2 {[%clk 0:00:08]} 53... Ng2+ {[%clk 0:00:10.2]} 54. Kg3 {[%clk
0:00:07.5]} 54... Ke3 {[%clk 0:00:10.2]} 55. Bg4 {[%clk 0:00:04.7]} 55... Nf4
{[%clk 0:00:08.4]} 0-1

[Event "*** Titled Tuesday Blitz"]
[Site "Chess.com"]
[Date "2020.12.01"]
[Round "7"]
[White "juancruzarias"]
[Black "Chernov_Mikhail"]
[Result "1-0"]
[WhiteElo "2499"]
[BlackElo "2295"]
[TimeControl "180+1"]
[EndTime "11:17:00 PST"]
[Termination "juancruzarias won by resignation"]

1. d4 {[%clk 0:03:00.9]} 1... d5 {[%clk 0:03:00]} 2. c4 {[%clk 0:02:59.1]} 2...
Nc6 {[%clk 0:03:00.4]} 3. e3 {[%clk 0:02:57.2]} 3... Nf6 {[%clk 0:02:59.9]} 4.
Nc3 {[%clk 0:02:57]} 4... dxc4 {[%clk 0:02:58.9]} 5. Bxc4 {[%clk 0:02:56.7]}
5... e5 {[%clk 0:02:58.5]} 6. Nf3 {[%clk 0:02:56.5]} 6... exd4 {[%clk
0:02:56.2]} 7. exd4 {[%clk 0:02:57.4]} 7... Bd6 {[%clk 0:02:48.6]} 8. O-O {[%clk
0:02:57.4]} 8... O-O {[%clk 0:02:49.2]} 9. h3 {[%clk 0:02:57]} 9... h6 {[%clk
0:02:49]} 10. Re1 {[%clk 0:02:56.6]} 10... Ne7 {[%clk 0:02:46.7]} 11. Ne5 {[%clk
0:02:54.7]} 11... c6 {[%clk 0:02:45.1]} 12. Qb3 {[%clk 0:02:45.4]} 12... Bxe5
{[%clk 0:02:33.5]} 13. dxe5 {[%clk 0:02:40.8]} 13... Nfd5 {[%clk 0:02:33.7]} 14.
Ne4 {[%clk 0:02:29.7]} 14... Qc7 {[%clk 0:02:19.5]} 15. Nd6 {[%clk 0:02:21.8]}
15... Be6 {[%clk 0:02:20]} 16. Qxb7 {[%clk 0:02:16]} 16... Qa5 {[%clk
0:02:04.1]} 17. b4 {[%clk 0:01:59.9]} 17... Qxb4 {[%clk 0:01:47.8]} 18. Qxb4
{[%clk 0:01:27.9]} 18... Nxb4 {[%clk 0:01:48.7]} 19. Bxe6 {[%clk 0:01:28]} 19...
fxe6 {[%clk 0:01:49.6]} 20. Rd1 {[%clk 0:01:09.9]} 20... Ned5 {[%clk 0:01:32.6]}
21. a3 {[%clk 0:01:04.3]} 21... Na6 {[%clk 0:01:27.7]} 22. Bd2 {[%clk
0:01:01.7]} 22... Nc5 {[%clk 0:01:14.4]} 23. Rac1 {[%clk 0:00:56.6]} 23... Nd3
{[%clk 0:01:14.4]} 24. Rxc6 {[%clk 0:00:55.7]} 24... Nxf2 {[%clk 0:01:14]} 25.
Rf1 {[%clk 0:00:47.8]} 25... Nd3 {[%clk 0:01:13.9]} 26. Rxf8+ {[%clk 0:00:46.6]}
26... Rxf8 {[%clk 0:01:12.3]} 27. Nc4 {[%clk 0:00:45.2]} 27... Kf7 {[%clk
0:00:56.6]} 28. Ra6 {[%clk 0:00:44.1]} 28... Rb8 {[%clk 0:00:51.8]} 29. Rxa7+
{[%clk 0:00:43.3]} 29... Kg6 {[%clk 0:00:52.3]} 30. g4 {[%clk 0:00:30.2]} 30...
Rc8 {[%clk 0:00:42]} 31. Ne3 {[%clk 0:00:23]} 31... N5f4 {[%clk 0:00:38]} 32. h4
{[%clk 0:00:19.9]} 32... Rb8 {[%clk 0:00:23.8]} 33. Ra6 {[%clk 0:00:19.8]} 33...
Rb2 {[%clk 0:00:19.2]} 34. Nc4 {[%clk 0:00:18.9]} 34... Rc2 {[%clk 0:00:18.4]}
35. h5+ {[%clk 0:00:19.3]} 35... Kg5 {[%clk 0:00:15.9]} 36. Rc6 {[%clk
0:00:19.7]} 36... Kxg4 {[%clk 0:00:14.4]} 37. Ne3+ {[%clk 0:00:19.9]} 37... Kf3
{[%clk 0:00:14.8]} 38. Nxc2 {[%clk 0:00:19.9]} 38... Ne2+ {[%clk 0:00:09.9]} 39.
Kh2 {[%clk 0:00:19.9]} 39... Nxe5 {[%clk 0:00:07]} 40. Rc7 {[%clk 0:00:17.7]}
40... Ng4+ {[%clk 0:00:05.9]} 41. Kh3 {[%clk 0:00:17.4]} 41... Nf2+ {[%clk
0:00:05.4]} 42. Kh4 {[%clk 0:00:17.4]} 42... Ng3 {[%clk 0:00:02.8]} 43. Rf7+
{[%clk 0:00:17.5]} 43... Nf5+ {[%clk 0:00:03.3]} 44. Rxf5+ {[%clk 0:00:17.1]}
44... exf5 {[%clk 0:00:04.2]} 45. a4 {[%clk 0:00:17.6]} 45... Ne4 {[%clk
0:00:04.3]} 46. Bb4 {[%clk 0:00:16.7]} 46... Kf4 {[%clk 0:00:03]} 47. a5 {[%clk
0:00:16.9]} 47... Nf6 {[%clk 0:00:02.4]} 48. a6 {[%clk 0:00:16.9]} 48... Nd5
{[%clk 0:00:03.3]} 49. a7 {[%clk 0:00:16.4]} 49... Nb6 {[%clk 0:00:03.9]} 50.
Ba5 {[%clk 0:00:16]} 50... Na8 {[%clk 0:00:03.5]} 51. Nb4 {[%clk 0:00:15.3]}
51... Ke5 {[%clk 0:00:04.1]} 52. Na6 {[%clk 0:00:15.9]} 52... Kd6 {[%clk
0:00:04.2]} 53. Kg3 {[%clk 0:00:16]} 53... Kc6 {[%clk 0:00:04.2]} 54. Kf4 {[%clk
0:00:16.2]} 54... Kb7 {[%clk 0:00:04.6]} 55. Nc7 {[%clk 0:00:16.7]} 55... Kxa7
{[%clk 0:00:05.1]} 56. Nxa8 {[%clk 0:00:16.7]} 56... Kxa8 {[%clk 0:00:06]} 57.
Kxf5 {[%clk 0:00:17.3]} 57... Kb7 {[%clk 0:00:06.9]} 58. Kg6 {[%clk 0:00:17.7]}
58... Kc6 {[%clk 0:00:07.8]} 59. Kxg7 {[%clk 0:00:18.1]} 59... Kd7 {[%clk
0:00:08.7]} 60. Kxh6 {[%clk 0:00:18.7]} 60... Ke6 {[%clk 0:00:09.6]} 61. Kg7
{[%clk 0:00:19.6]} 61... Kf5 {[%clk 0:00:10.5]} 62. h6 {[%clk 0:00:20.5]} 62...
Kg5 {[%clk 0:00:11.2]} 63. h7 {[%clk 0:00:21.4]} 63... Kf5 {[%clk 0:00:12.1]}
64. h8=Q {[%clk 0:00:21.6]} 64... Ke6 {[%clk 0:00:13]} 65. Qf8 {[%clk
0:00:21.9]} 1-0

[Event "*** Titled Tuesday Blitz"]
[Site "Chess.com"]
[Date "2020.12.01"]
[Round "7"]
[White "bratkoo"]
[Black "eCztery"]
[Result "0-1"]
[WhiteElo "2521"]
[BlackElo "2344"]
[TimeControl "180+1"]
[EndTime "11:17:01 PST"]
[Termination "eCztery won by checkmate"]

1. e4 {[%clk 0:02:57.8]} 1... c5 {[%clk 0:02:57.8]} 2. Nf3 {[%clk 0:02:57.4]}
2... g6 {[%clk 0:02:55.7]} 3. d4 {[%clk 0:02:57.5]} 3... cxd4 {[%clk 0:02:56.6]}
4. Nxd4 {[%clk 0:02:58.3]} 4... Nc6 {[%clk 0:02:56.4]} 5. Nc3 {[%clk 0:02:59.2]}
5... Bg7 {[%clk 0:02:56.2]} 6. Be3 {[%clk 0:02:58.5]} 6... Nf6 {[%clk
0:02:55.1]} 7. Bc4 {[%clk 0:02:58.4]} 7... O-O {[%clk 0:02:55.2]} 8. Bb3 {[%clk
0:02:58.6]} 8... Ng4 {[%clk 0:02:54.9]} 9. Qxg4 {[%clk 0:02:51.9]} 9... Nxd4
{[%clk 0:02:55.4]} 10. O-O-O {[%clk 0:02:46.8]} 10... d5 {[%clk 0:02:51.7]} 11.
Qh4 {[%clk 0:02:40.4]} 11... Nxb3+ {[%clk 0:02:49.9]} 12. axb3 {[%clk
0:02:38.2]} 12... d4 {[%clk 0:02:50.2]} 13. e5 {[%clk 0:02:31.8]} 13... Qa5
{[%clk 0:02:29.3]} 14. Bxd4 {[%clk 0:02:31.8]} 14... Qa1+ {[%clk 0:02:22.4]} 15.
Nb1 {[%clk 0:02:31.7]} 15... Bf5 {[%clk 0:02:21.2]} 16. g4 {[%clk 0:02:31.6]}
16... Be4 {[%clk 0:02:21.5]} 17. Rhe1 {[%clk 0:02:30.5]} 17... Bd5 {[%clk
0:02:02.2]} 18. Rd3 {[%clk 0:02:21.3]} 18... Rac8 {[%clk 0:01:59.8]} 19. Kd2
{[%clk 0:02:12.5]} 19... Rfd8 {[%clk 0:01:52]} 20. Qxe7 {[%clk 0:02:00.7]} 20...
Be4 {[%clk 0:01:43.2]} 21. Nc3 {[%clk 0:01:55.4]} 21... Qxe1+ {[%clk 0:01:28.8]}
22. Kxe1 {[%clk 0:01:54.8]} 22... Bxd3 {[%clk 0:01:29.4]} 23. Qxb7 {[%clk
0:01:43.1]} 23... Bxc2 {[%clk 0:00:53.8]} 24. f4 {[%clk 0:01:06.2]} 24... Bxb3
{[%clk 0:00:47.5]} 25. Bxa7 {[%clk 0:00:59.9]} 25... Be6 {[%clk 0:00:43.4]} 26.
h3 {[%clk 0:00:53.8]} 26... Bh6 {[%clk 0:00:42.4]} 27. Qf3 {[%clk 0:00:42.6]}
27... Ra8 {[%clk 0:00:35.5]} 28. Bb6 {[%clk 0:00:41.5]} 28... Ra1+ {[%clk
0:00:33]} 29. Ke2 {[%clk 0:00:36.6]} 29... Bc4+ {[%clk 0:00:29.6]} 30. Kf2
{[%clk 0:00:31.6]} 30... Rf1+ {[%clk 0:00:28.5]} 31. Kg2 {[%clk 0:00:32.1]}
31... Rxf3 {[%clk 0:00:27.6]} 32. Kxf3 {[%clk 0:00:33]} 32... Rb8 {[%clk
0:00:27.1]} 33. Bd4 {[%clk 0:00:29]} 33... Rxb2 {[%clk 0:00:28]} 34. Ne4 {[%clk
0:00:29.2]} 34... Rb3+ {[%clk 0:00:26.7]} 35. Kf2 {[%clk 0:00:25.6]} 35... Bf8
{[%clk 0:00:24.9]} 36. Nf6+ {[%clk 0:00:25.6]} 36... Kg7 {[%clk 0:00:20]} 37. f5
{[%clk 0:00:18.6]} 37... gxf5 {[%clk 0:00:19.4]} 38. gxf5 {[%clk 0:00:18.8]}
38... Be7 {[%clk 0:00:18.6]} 39. Ne4 {[%clk 0:00:17.2]} 39... Bh4+ {[%clk
0:00:19.3]} 40. Kg1 {[%clk 0:00:15]} 40... Bd5 {[%clk 0:00:18.4]} 41. e6+ {[%clk
0:00:12.9]} 41... Kf8 {[%clk 0:00:16.3]} 42. Bc5+ {[%clk 0:00:11.8]} 42... Kg8
{[%clk 0:00:16.6]} 43. f6 {[%clk 0:00:03.9]} 43... Bxe6 {[%clk 0:00:15.7]} 44.
Nf2 {[%clk 0:00:03]} 44... Bxf2+ {[%clk 0:00:15]} 45. Kxf2 {[%clk 0:00:03.5]}
45... Rxh3 {[%clk 0:00:15.9]} 46. Be7 {[%clk 0:00:03.5]} 46... Rh5 {[%clk
0:00:15.9]} 47. Kg3 {[%clk 0:00:03.3]} 47... Rf5 {[%clk 0:00:16.8]} 48. Kg4
{[%clk 0:00:03.9]} 48... h5+ {[%clk 0:00:17.7]} 49. Kh4 {[%clk 0:00:04.2]} 49...
Kh7 {[%clk 0:00:18.6]} 50. Bd8 {[%clk 0:00:04.8]} 50... Kh6 {[%clk 0:00:19.5]}
51. Be7 {[%clk 0:00:05.7]} 51... Kg6 {[%clk 0:00:20.4]} 52. Bd8 {[%clk
0:00:05.6]} 52... Rxf6 {[%clk 0:00:20.7]} 53. Bxf6 {[%clk 0:00:05.5]} 53... Kxf6
{[%clk 0:00:21.6]} 54. Kxh5 {[%clk 0:00:06.2]} 54... Ke5 {[%clk 0:00:22.5]} 55.
Kg5 {[%clk 0:00:06.4]} 55... f5 {[%clk 0:00:23.4]} 56. Kh6 {[%clk 0:00:07.3]}
56... f4 {[%clk 0:00:24]} 57. Kh7 {[%clk 0:00:08.2]} 57... f3 {[%clk 0:00:24.7]}
58. Kh8 {[%clk 0:00:09.1]} 58... f2 {[%clk 0:00:25.4]} 59. Kh7 {[%clk 0:00:10]}
59... f1=Q {[%clk 0:00:25.7]} 60. Kh8 {[%clk 0:00:10.9]} 60... Qg1 {[%clk
0:00:25.5]} 61. Kh7 {[%clk 0:00:10.8]} 61... Qg5 {[%clk 0:00:25.5]} 62. Kh8
{[%clk 0:00:10.1]} 62... Qh6# {[%clk 0:00:26]} 0-1

[Event "*** Titled Tuesday Blitz"]
[Site "Chess.com"]
[Date "2020.12.01"]
[Round "7"]
[White "KononenkoD"]
[Black "arminmusovic"]
[Result "1-0"]
[WhiteElo "2372"]
[BlackElo "2508"]
[TimeControl "180+1"]
[EndTime "11:17:01 PST"]
[Termination "KononenkoD won by resignation"]

1. d4 {[%clk 0:03:00.9]} 1... d5 {[%clk 0:02:58.9]} 2. c3 {[%clk 0:03:00.3]}
2... c5 {[%clk 0:02:59.7]} 3. Nf3 {[%clk 0:02:55.5]} 3... cxd4 {[%clk
0:03:00.6]} 4. cxd4 {[%clk 0:02:55.2]} 4... Nc6 {[%clk 0:03:01.5]} 5. Nc3 {[%clk
0:02:54.8]} 5... Nf6 {[%clk 0:03:01.8]} 6. Bf4 {[%clk 0:02:50.7]} 6... a6 {[%clk
0:03:02.4]} 7. e3 {[%clk 0:02:49.7]} 7... g6 {[%clk 0:03:02.9]} 8. Bd3 {[%clk
0:02:48.4]} 8... Bg7 {[%clk 0:03:03.6]} 9. O-O {[%clk 0:02:48.3]} 9... O-O
{[%clk 0:03:04.3]} 10. Ne5 {[%clk 0:02:48.8]} 10... Re8 {[%clk 0:03:04.5]} 11.
Nxc6 {[%clk 0:02:47.7]} 11... bxc6 {[%clk 0:03:05.4]} 12. Na4 {[%clk 0:02:48.1]}
12... Nd7 {[%clk 0:03:05.1]} 13. Rc1 {[%clk 0:02:47.5]} 13... e5 {[%clk
0:03:03.5]} 14. dxe5 {[%clk 0:02:45.6]} 14... Nxe5 {[%clk 0:03:04.4]} 15. Be2
{[%clk 0:02:36.8]} 15... h5 {[%clk 0:02:55.5]} 16. h3 {[%clk 0:02:33]} 16... Bf5
{[%clk 0:02:45.9]} 17. Bxe5 {[%clk 0:02:24.6]} 17... Bxe5 {[%clk 0:02:43.7]} 18.
Rxc6 {[%clk 0:02:24.3]} 18... Qh4 {[%clk 0:02:02.9]} 19. f4 {[%clk 0:01:38.1]}
19... Bg7 {[%clk 0:01:35.1]} 20. Nc3 {[%clk 0:01:18.3]} 20... Rxe3 {[%clk
0:01:26.2]} 21. Nxd5 {[%clk 0:01:12.1]} 21... Rxh3 {[%clk 0:01:25.7]} 22. gxh3
{[%clk 0:00:35.5]} 22... Qg3+ {[%clk 0:01:25]} 23. Kh1 {[%clk 0:00:36]} 23...
Qxh3+ {[%clk 0:01:25.2]} 24. Kg1 {[%clk 0:00:36]} 24... Qg3+ {[%clk 0:01:10.2]}
25. Kh1 {[%clk 0:00:35.6]} 25... Re8 {[%clk 0:01:03.6]} 26. Bf3 {[%clk 0:00:30]}
26... Qh3+ {[%clk 0:00:54.9]} 27. Kg1 {[%clk 0:00:29.6]} 27... Qg3+ {[%clk
0:00:49.2]} 28. Kh1 {[%clk 0:00:19.8]} 28... Kh8 {[%clk 0:00:37.9]} 29. Rc3
{[%clk 0:00:15.6]} 29... Qh3+ {[%clk 0:00:36.5]} 30. Kg1 {[%clk 0:00:15.4]}
30... Qg3+ {[%clk 0:00:36.2]} 31. Bg2 {[%clk 0:00:14.9]} 31... Bxc3 {[%clk
0:00:36.2]} 32. bxc3 {[%clk 0:00:14.5]} 32... Re4 {[%clk 0:00:32.8]} 33. Nf6
{[%clk 0:00:12.2]} 33... Qe3+ {[%clk 0:00:31.8]} 34. Rf2 {[%clk 0:00:10.9]}
34... Qe1+ {[%clk 0:00:31.1]} 35. Qxe1 {[%clk 0:00:11.1]} 35... Rxe1+ {[%clk
0:00:32]} 36. Kh2 {[%clk 0:00:11.7]} 36... Re6 {[%clk 0:00:32.9]} 37. Nd5 {[%clk
0:00:11.4]} 37... Kg7 {[%clk 0:00:33.1]} 38. Nb4 {[%clk 0:00:11.4]} 38... a5
{[%clk 0:00:32.6]} 39. Nd5 {[%clk 0:00:11.2]} 39... Rc6 {[%clk 0:00:31.8]} 40.
Rd2 {[%clk 0:00:11]} 40... Rc5 {[%clk 0:00:31.9]} 41. Rd4 {[%clk 0:00:10.9]}
41... Be6 {[%clk 0:00:32.1]} 42. c4 {[%clk 0:00:10.5]} 42... h4 {[%clk
0:00:32.6]} 43. Kg1 {[%clk 0:00:09.8]} 43... h3 {[%clk 0:00:32.4]} 44. Bf1
{[%clk 0:00:08.8]} 44... a4 {[%clk 0:00:32.9]} 45. Kh2 {[%clk 0:00:08.8]} 45...
Bxd5 {[%clk 0:00:33]} 46. cxd5 {[%clk 0:00:08.3]} 46... Rc7 {[%clk 0:00:33.9]}
47. Kxh3 {[%clk 0:00:08.1]} 47... Rc3+ {[%clk 0:00:33.5]} 48. Kg2 {[%clk
0:00:07.5]} 48... Rc8 {[%clk 0:00:34.4]} 49. Kf3 {[%clk 0:00:07.3]} 49... Rd8
{[%clk 0:00:35.3]} 50. Bd3 {[%clk 0:00:07.5]} 50... a3 {[%clk 0:00:36.2]} 51. d6
{[%clk 0:00:07.2]} 51... Kf6 {[%clk 0:00:37.1]} 52. Bc4 {[%clk 0:00:07.1]} 52...
g5 {[%clk 0:00:36.9]} 53. fxg5+ {[%clk 0:00:05.7]} 53... Kxg5 {[%clk 0:00:37.8]}
54. d7 {[%clk 0:00:04.8]} 54... Kf6 {[%clk 0:00:36.8]} 55. Bb5 {[%clk
0:00:04.8]} 55... Ke5 {[%clk 0:00:37]} 56. Ra4 {[%clk 0:00:04.4]} 56... f5
{[%clk 0:00:37.2]} 57. Rxa3 {[%clk 0:00:04.7]} 57... Rh8 {[%clk 0:00:36.5]} 58.
Ra5 {[%clk 0:00:03.5]} 58... Rh3+ {[%clk 0:00:34.7]} 59. Kg2 {[%clk 0:00:03.4]}
59... Rh8 {[%clk 0:00:35.6]} 60. Ra6 {[%clk 0:00:03.4]} 60... Kf4 {[%clk
0:00:36.5]} 61. Rc6 {[%clk 0:00:03.7]} 61... Rg8+ {[%clk 0:00:36.9]} 62. Kf2
{[%clk 0:00:03.2]} 62... Rh8 {[%clk 0:00:37.8]} 63. Rc4+ {[%clk 0:00:02.8]}
63... Kg5 {[%clk 0:00:37.4]} 64. Rc8 {[%clk 0:00:03.7]} 64... Rh2+ {[%clk
0:00:37.4]} 65. Kg1 {[%clk 0:00:02.9]} 65... Rd2 {[%clk 0:00:37.1]} 66. d8=Q+
{[%clk 0:00:03.8]} 66... Rxd8 {[%clk 0:00:37.7]} 67. Rxd8 {[%clk 0:00:04.2]}
67... Kf4 {[%clk 0:00:38.6]} 68. Rf8 {[%clk 0:00:04]} 68... Kg3 {[%clk
0:00:39.5]} 69. a4 {[%clk 0:00:04.1]} 69... f4 {[%clk 0:00:40.4]} 70. a5 {[%clk
0:00:05]} 70... f3 {[%clk 0:00:41.3]} 71. a6 {[%clk 0:00:05.9]} 71... f2+ {[%clk
0:00:42.2]} 72. Kf1 {[%clk 0:00:05.8]} 1-0